fUST/lending_fUST_20241202
["ID","MTS","AMOUNT","RATE_DAILY","PERIOD"]
[343924063,1733074244178,-377.75867019,0.00025,2]
[343924064,1733074244188,-8524.10383911,0.00025,2]
[343924065,1733074244198,-113979.37566364,0.00025,2]
[343924066,1733074244207,-448.58032447,0.00025,2]
[343924068,1733074244218,-185.522548,0.00025089,2]
[343924069,1733074244227,-81887.29369507,0.0002509,2]
[343924070,1733074244237,-8057.08095685,0.00026,30]
[343924071,1733074244248,-587.0,0.0002614,2]
[343924072,1733074244258,-587.0,0.00026794,2]
[343924073,1733074244267,-20000.0,0.00027,3]
[343924074,1733074244277,-175.73710356,0.000272,2]
[343924075,1733074244287,-3162.79810105,0.000273,2]
[343924076,1733074244297,-500.0,0.00027397,3]
[343924077,1733074244306,-500.0,0.00027397,3]
[343924078,1733074244316,-500.0,0.00027397,3]
[343924079,1733074244325,-500.0,0.00027397,2]
[343924081,1733074244334,-533.06282274,0.00027397,3]
[343924082,1733074244344,-500.0,0.00027397,3]
[343924084,1733074244353,-398.37289619,0.00027397,3]
[343924085,1733074244362,-412.33066596,0.00027397,3]
[343924087,1733074244371,-500.0,0.00027397,3]
[343924088,1733074244381,-500.0,0.00027397,3]
[343924089,1733074244391,-500.0,0.00027397,3]
[343924090,1733074244403,-500.0,0.00027397,3]
[343924091,1733074244413,-500.0,0.00027397,3]
[343924092,1733074244423,-329.3363051,0.00027397,3]
[343924093,1733074244434,-500.0,0.00027397,3]
[343924094,1733074244443,-500.0,0.00027397,3]
[343924095,1733074244453,-500.0,0.00027397,3]
[343924096,1733074244463,-500.0,0.00027397,3]
[343924097,1733074244473,-500.0,0.00027397,3]
[343924098,1733074244482,-500.0,0.00027397,3]
[343924099,1733074244493,-182.26809074,0.00027397,3]
[343924100,1733074244503,-314.64935498,0.00027397,3]
[343924101,1733074244512,-500.0,0.00027397,3]
[343924102,1733074244521,-874.96,0.00027397,3]
[343924103,1733074244533,-500.0,0.00027397,3]
[343924104,1733074244542,-500.0,0.00027397,3]
[343924105,1733074244552,-522.13991873,0.00027397,3]
[343924106,1733074244561,-500.0,0.00027397,3]
[343924107,1733074244570,-500.0,0.00027397,3]
[343924108,1733074244580,-500.0,0.00027397,3]
[343924109,1733074244589,-500.0,0.00027397,3]
[343924110,1733074244598,-500.0,0.00027397,3]
[343924111,1733074244607,-500.0,0.00027397,3]
[343924112,1733074244616,-500.0,0.00027397,3]
[343924113,1733074244626,-500.0,0.00027397,3]
[343924114,1733074244635,-850.13,0.00027397,3]
[343924115,1733074244644,-621.45,0.00027397,3]
[343924116,1733074244654,-500.0,0.00027397,3]
[343924117,1733074244663,-500.0,0.00027397,3]
[343924118,1733074244672,-627.68,0.00027397,3]
[343924119,1733074244682,-500.0,0.00027397,3]
[343924120,1733074244692,-500.0,0.00027397,3]
[343924121,1733074244702,-500.0,0.00027397,3]
[343924122,1733074244711,-975.75,0.00027397,3]
[343924123,1733074244721,-500.0,0.00027397,3]
[343924124,1733074244730,-500.0,0.00027397,3]
[343924125,1733074244742,-296.63606779,0.00027397,3]
[343924126,1733074244758,-500.0,0.00027397,3]
[343924127,1733074244768,-500.0,0.00027397,3]
[343924128,1733074244779,-500.0,0.00027397,3]
[343924129,1733074244788,-594.46,0.00027397,3]
[343924130,1733074244798,-500.0,0.00027397,3]
[343924131,1733074244807,-500.0,0.00027397,3]
[343924132,1733074244816,-414.72535098,0.00027397,3]
[343924133,1733074244826,-500.0,0.00027397,3]
[343924134,1733074244835,-500.0,0.00027397,3]
[343924135,1733074244845,-1526.35,0.00027397,3]
[343924136,1733074244855,-500.0,0.00027397,3]
[343924137,1733074244864,-500.0,0.00027397,3]
[343924138,1733074244875,-308.82396243,0.00027397,3]
[343924139,1733074244893,-500.0,0.00027397,3]
[343924140,1733074244908,-500.0,0.00027397,3]
[343924141,1733074244923,-500.0,0.00027397,3]
[343924142,1733074244933,-500.0,0.00027397,3]
[343924143,1733074244943,-586.78,0.00027397,3]
[343924144,1733074244953,-500.0,0.00027397,3]
[343924145,1733074244963,-550.4,0.00027397,3]
[343924146,1733074244972,-500.0,0.00027397,3]
[343924147,1733074244982,-6141.8,0.00027397,3]
[343924148,1733074244991,-500.0,0.00027397,3]
[343924149,1733074245001,-512.77,0.00027397,3]
[343924150,1733074245011,-20652.31,0.00027397,3]
[343924151,1733074245020,-500.0,0.00027397,3]
[343924152,1733074245030,-500.0,0.00027397,3]
[343924153,1733074245039,-500.0,0.00027397,3]
[343924154,1733074245048,-500.0,0.00027397,3]
[343924155,1733074245058,-1059.54,0.00027397,3]
[343924156,1733074245067,-500.0,0.00027397,3]
[343924157,1733074245077,-500.0,0.00027397,3]
[343924158,1733074245086,-500.0,0.00027397,3]
[343924159,1733074245095,-514.96,0.00027397,3]
[343924160,1733074245105,-500.0,0.00027397,3]
[343924161,1733074245114,-3190.15,0.00027397,3]
[343924162,1733074245124,-500.0,0.00027397,3]
[343924163,1733074245133,-500.0,0.00027397,3]
[343924164,1733074245143,-500.0,0.00027397,3]
[343924165,1733074245153,-500.0,0.00027397,3]
[343924166,1733074245162,-2621.93,0.00027397,3]
[343924167,1733074245173,-500.0,0.00027397,3]
[343924168,1733074245186,-500.0,0.00027397,3]
[343924169,1733074245196,-500.0,0.00027397,3]
[343924170,1733074245205,-704.53,0.00027397,3]
[343924171,1733074245214,-500.0,0.00027397,3]
[343924172,1733074245224,-642.14,0.00027397,3]
[343924173,1733074245233,-500.0,0.00027397,3]
[343924174,1733074245243,-500.0,0.00027397,3]
[343924175,1733074245254,-181.59668031,0.00027397,2]
[343924176,1733074245263,-500.0,0.00027397,3]
[343924177,1733074245276,-500.0,0.00027397,3]
[343924178,1733074245286,-500.0,0.00027397,3]
[343924179,1733074245296,-504.04210714,0.00027397,3]
[343924180,1733074245305,-500.0,0.00027397,3]
[343924181,1733074245319,-500.0,0.00027397,3]
[343924182,1733074245329,-867.49,0.000274,2]
[343924183,1733074245340,-166.97925073,0.00027671,3]
[343924184,1733074245350,-500.0,0.00027671,3]
[343924185,1733074245359,-500.0,0.00027671,3]
[343924186,1733074245369,-500.0,0.00027671,3]
[343924187,1733074245379,-500.0,0.00027671,3]
[343924188,1733074245388,-500.0,0.00027671,3]
[343924189,1733074245398,-472.52019131,0.00027671,3]
[343924190,1733074245408,-500.0,0.00027671,3]
[343924191,1733074245417,-874.96,0.00027671,3]
[343924192,1733074245426,-500.0,0.00027671,3]
[343924193,1733074245435,-253.8634439,0.00027671,3]
[343924194,1733074245445,-500.0,0.00027671,3]
[343924195,1733074245454,-500.0,0.00027671,3]
[343924196,1733074245464,-500.0,0.00027671,3]
[343924197,1733074245557,-500.0,0.00027671,3]
[343924198,1733074245568,-500.0,0.00027671,3]
[343924199,1733074245577,-500.0,0.00027671,3]
[343924200,1733074245587,-850.13,0.00027671,3]
[343924201,1733074245596,-621.45,0.00027671,3]
[343924202,1733074245605,-500.0,0.00027671,3]
[343924203,1733074245615,-403.14,0.00027671,3]
[343924204,1733074245624,-627.68,0.00027671,3]
[343924205,1733074245634,-500.0,0.00027671,3]
[343924206,1733074245643,-500.0,0.00027671,3]
[343924207,1733074245652,-975.75,0.00027671,3]
[343924208,1733074245662,-500.0,0.00027671,3]
[343924209,1733074245671,-475.94352366,0.00027671,3]
[343924210,1733074245681,-500.0,0.00027671,3]
[343924211,1733074245691,-500.0,0.00027671,3]
[343924212,1733074245700,-500.0,0.00027671,3]
[343924213,1733074245710,-594.46,0.00027671,3]
[343924214,1733074245720,-500.0,0.00027671,3]
[343924215,1733074245729,-500.0,0.00027671,3]
[343924216,1733074245739,-500.0,0.00027671,3]
[343924217,1733074245750,-610.84390165,0.00027671,3]
[343924218,1733074245760,-1526.35,0.00027671,3]
[343924219,1733074245773,-508.39948007,0.00027671,3]
[343924220,1733074245782,-500.0,0.00027671,3]
[343924221,1733074245792,-500.0,0.00027671,3]
[343924222,1733074245802,-500.0,0.00027671,3]
[343924223,1733074245812,-500.0,0.00027671,3]
[343924224,1733074245822,-500.0,0.00027671,3]
[343924225,1733074245832,-586.78,0.00027671,3]
[343924226,1733074245842,-500.0,0.00027671,3]
[343924227,1733074245851,-550.4,0.00027671,3]
[343924228,1733074245861,-500.0,0.00027671,3]
[343924229,1733074245870,-6141.8,0.00027671,3]
[343924230,1733074245881,-500.0,0.00027671,3]
[343924231,1733074245890,-512.77,0.00027671,3]
[343924232,1733074245899,-20652.31,0.00027671,3]
[343924233,1733074245909,-500.0,0.00027671,3]
[343924234,1733074245918,-500.0,0.00027671,3]
[343924235,1733074245928,-500.0,0.00027671,3]
[343924236,1733074245938,-1059.54,0.00027671,3]
[343924237,1733074245947,-501.57,0.00027671,3]
[343924238,1733074245956,-500.0,0.00027671,3]
[343924239,1733074245966,-500.0,0.00027671,3]
[343924240,1733074245976,-514.96,0.00027671,3]
[343924241,1733074245986,-500.0,0.00027671,3]
[343924242,1733074245996,-3190.15,0.00027671,3]
[343924243,1733074246006,-500.0,0.00027671,3]
[343924244,1733074246016,-500.0,0.00027671,3]
[343924245,1733074246026,-500.0,0.00027671,3]
[343924246,1733074246036,-500.0,0.00027671,3]
[343924247,1733074246046,-2621.93,0.00027671,3]
[343924248,1733074246055,-500.0,0.00027671,3]
[343924249,1733074246065,-500.0,0.00027671,3]
[343924250,1733074246074,-704.53,0.00027671,3]
[343924251,1733074246084,-500.0,0.00027671,3]
[343924252,1733074246093,-642.14,0.00027671,3]
[343924253,1733074246103,-500.0,0.00027671,3]
[343924254,1733074246113,-500.0,0.00027671,3]
[343924255,1733074246122,-500.0,0.00027671,3]
[343924256,1733074246132,-500.0,0.00027671,3]
[343924257,1733074246142,-500.0,0.00027671,3]
[343924258,1733074246152,-500.0,0.00027671,3]
[343924259,1733074246162,-500.0,0.00027671,3]
[343924261,1733074246173,-500.0,0.00027673,5]
[343924263,1733074246188,-500.0,0.00027673,5]
[343924264,1733074246199,-500.0,0.00027945,3]
[343924265,1733074246209,-500.0,0.00027945,3]
[343924266,1733074246220,-500.0,0.00027945,3]
[343924267,1733074246230,-500.0,0.00027945,3]
[343924268,1733074246240,-500.0,0.00027945,3]
[343924269,1733074246251,-500.0,0.00027945,3]
[343924270,1733074246263,-874.96,0.00027945,3]
[343924271,1733074246274,-500.0,0.00027945,3]
[343924272,1733074246284,-500.0,0.00027945,3]
[343924273,1733074246295,-500.0,0.00027945,3]
[343924274,1733074246305,-500.0,0.00027945,3]
[343924275,1733074246315,-500.0,0.00027945,3]
[343924276,1733074246324,-500.0,0.00027945,3]
[343924277,1733074246334,-500.0,0.00027945,3]
[343924278,1733074246343,-850.13,0.00027945,3]
[343924279,1733074246353,-621.45,0.00027945,3]
[343924280,1733074246363,-500.0,0.00027945,3]
[343924281,1733074246373,-627.68,0.00027945,3]
[343924282,1733074246382,-500.0,0.00027945,3]
[343924283,1733074246391,-500.0,0.00027945,3]
[343924284,1733074246401,-975.75,0.00027945,3]
[343924285,1733074246411,-500.0,0.00027945,3]
[343924286,1733074246421,-623.24447172,0.00027945,3]
[343924287,1733074246431,-500.0,0.00027945,3]
[343924288,1733074246440,-500.0,0.00027945,3]
[343924289,1733074246451,-594.46,0.00027945,3]
[343924290,1733074246461,-500.0,0.00027945,3]
[343924291,1733074246470,-514.15131863,0.00027945,3]
[343924292,1733074246480,-500.0,0.00027945,3]
[343924293,1733074246490,-1526.35,0.00027945,3]
[343924294,1733074246500,-500.0,0.00027945,3]
[343924295,1733074246510,-500.0,0.00027945,3]
[343924296,1733074246520,-500.0,0.00027945,3]
[343924297,1733074246529,-500.0,0.00027945,3]
[343924298,1733074246539,-500.0,0.00027945,3]
[343924300,1733074246550,-586.78,0.00027945,3]
[343924301,1733074246559,-500.0,0.00027945,3]
[343924302,1733074246569,-550.4,0.00027945,3]
[343924303,1733074246578,-500.0,0.00027945,3]
[343924304,1733074246587,-6141.8,0.00027945,3]
[343924305,1733074246598,-500.0,0.00027945,3]
[343924306,1733074246608,-512.77,0.00027945,3]
[343924307,1733074246618,-20652.31,0.00027945,3]
[343924308,1733074246628,-500.0,0.00027945,3]
[343924309,1733074246638,-500.0,0.00027945,3]
[343924310,1733074246647,-500.0,0.00027945,3]
[343924311,1733074246657,-1059.54,0.00027945,3]
[343924312,1733074246667,-500.0,0.00027945,3]
[343924313,1733074246677,-500.0,0.00027945,3]
[343924314,1733074246686,-514.96,0.00027945,3]
[343924315,1733074246696,-500.0,0.00027945,3]
[343924316,1733074246705,-3190.15,0.00027945,3]
[343924317,1733074246714,-500.0,0.00027945,3]
[343924318,1733074246724,-500.0,0.00027945,3]
[343924319,1733074246733,-500.0,0.00027945,3]
[343924320,1733074246743,-500.0,0.00027945,3]
[343924321,1733074246756,-2621.93,0.00027945,3]
[343924322,1733074246766,-500.0,0.00027945,3]
[343924323,1733074246775,-500.0,0.00027945,3]
[343924324,1733074246784,-704.53,0.00027945,3]
[343924325,1733074246794,-500.0,0.00027945,3]
[343924326,1733074246803,-642.14,0.00027945,3]
[343924327,1733074246812,-500.0,0.00027945,3]
[343924328,1733074246821,-500.0,0.00027945,3]
[343924329,1733074246830,-500.0,0.00027945,3]
[343924330,1733074246840,-500.0,0.00027945,3]
[343924331,1733074246850,-500.0,0.00027945,3]
[343924332,1733074246859,-500.0,0.00027945,3]
[343924333,1733074246869,-500.0,0.00027945,3]
[343924334,1733074246879,-3619.30728479,0.00028,2]
[343924335,1733074246889,-2021.01791111,0.00028,2]
[343924336,1733074246899,-175.73710355,0.00028119,2]
[343924337,1733074246908,-302.44190518,0.00028119,2]
[343924338,1733074246917,-500.0,0.00028219,3]
[343924339,1733074246927,-500.0,0.00028219,3]
[343924340,1733074246937,-500.0,0.00028219,3]
[343924341,1733074246947,-369.12900002,0.00028219,3]
[343924342,1733074246956,-500.0,0.00028219,3]
[343924343,1733074246965,-500.0,0.00028219,3]
[343924344,1733074246975,-874.96,0.00028219,3]
[343924345,1733074246985,-500.0,0.00028219,3]
[343924346,1733074246996,-500.0,0.00028219,3]
[343924347,1733074247005,-500.0,0.00028219,3]
[343924348,1733074247014,-500.0,0.00028219,3]
[343924349,1733074247024,-500.0,0.00028219,3]
[343924350,1733074247034,-500.0,0.00028219,3]
[343924351,1733074247044,-500.0,0.00028219,3]
[343924352,1733074247054,-850.13,0.00028219,3]
[343924353,1733074247063,-621.45,0.00028219,3]
[343924354,1733074247072,-500.0,0.00028219,3]
[343924355,1733074247082,-627.68,0.00028219,3]
[343924356,1733074247091,-500.0,0.00028219,3]
[343924357,1733074247101,-500.0,0.00028219,3]
[343924358,1733074247110,-975.75,0.00028219,3]
[343924359,1733074247119,-500.0,0.00028219,3]
[343924360,1733074247129,-500.0,0.00028219,3]
[343924361,1733074247138,-500.0,0.00028219,3]
[343924362,1733074247147,-594.46,0.00028219,3]
[343924363,1733074247156,-500.0,0.00028219,3]
[343924364,1733074247166,-500.0,0.00028219,3]
[343924365,1733074247178,-1526.35,0.00028219,3]
[343924366,1733074247187,-500.0,0.00028219,3]
[343924367,1733074247197,-500.0,0.00028219,3]
[343924368,1733074247207,-500.0,0.00028219,3]
[343924369,1733074247217,-500.0,0.00028219,3]
[343924370,1733074247227,-500.0,0.00028219,3]
[343924371,1733074247236,-586.78,0.00028219,3]
[343924372,1733074247248,-500.0,0.00028219,3]
[343924373,1733074247258,-550.4,0.00028219,3]
[343924374,1733074247267,-500.0,0.00028219,3]
[343924375,1733074247276,-6141.8,0.00028219,3]
[343924376,1733074247286,-500.0,0.00028219,3]
[343924377,1733074247295,-512.77,0.00028219,3]
[343924378,1733074247304,-20652.31,0.00028219,3]
[343924379,1733074247314,-500.0,0.00028219,3]
[343924380,1733074247324,-500.0,0.00028219,3]
[343924381,1733074247334,-500.0,0.00028219,3]
[343924382,1733074247343,-1059.54,0.00028219,3]
[343924383,1733074247353,-500.0,0.00028219,3]
[343924384,1733074247362,-300.83904631,0.00028219,3]
[343924385,1733074247372,-514.96,0.00028219,3]
[343924386,1733074247381,-500.0,0.00028219,3]
[343924387,1733074247390,-3190.15,0.00028219,3]
[343924388,1733074247399,-500.0,0.00028219,3]
[343924389,1733074247408,-494.33116364,0.00028219,3]
[343924390,1733074247417,-244.95483174,0.00028219,3]
[343924391,1733074247427,-500.0,0.00028219,3]
[343924392,1733074247436,-2621.93,0.00028219,3]
[343924393,1733074247445,-500.0,0.00028219,3]
[343924394,1733074247455,-500.0,0.00028219,3]
[343924395,1733074247464,-704.53,0.00028219,3]
[343924396,1733074247474,-500.0,0.00028219,3]
[343924397,1733074247483,-642.14,0.00028219,3]
[343924398,1733074247494,-500.0,0.00028219,3]
[343924399,1733074247503,-500.0,0.00028219,3]
[343924400,1733074247512,-500.0,0.00028219,3]
[343924401,1733074247522,-608.30797793,0.00028219,3]
[343924402,1733074247531,-500.0,0.00028219,3]
[343924403,1733074247540,-500.0,0.00028219,3]
[343924404,1733074247550,-500.0,0.00028219,3]
[343924405,1733074247559,-1000.0,0.00028221,5]
[343924406,1733074247568,-497.788176,0.00028301,15]
[343924407,1733074247578,-289.595,0.00028369,2]
[343924408,1733074247587,-302.4419051,0.0002837,2]
[343924409,1733074247596,-823.0,0.00028402,2]
[343924410,1733074247606,-3200.0,0.00028444,2]
[343924411,1733074247693,-1118.86207165,0.00028492,2]
[343924412,1733074247703,-500.0,0.00028493,3]
[343924413,1733074247712,-500.0,0.00028493,3]
[343924414,1733074247722,-151.0,0.00028493,7]
[343924415,1733074247731,-500.0,0.00028493,3]
[343924416,1733074247742,-500.0,0.00028493,3]
[343924417,1733074247751,-500.0,0.00028493,3]
[343924418,1733074247763,-874.96,0.00028493,3]
[343924419,1733074247773,-500.0,0.00028493,3]
[343924420,1733074247782,-500.0,0.00028493,3]
[343924421,1733074247792,-500.0,0.00028493,3]
[343924422,1733074247802,-500.0,0.00028493,3]
[343924423,1733074247812,-500.0,0.00028493,3]
[343924424,1733074247822,-500.0,0.00028493,3]
[343924425,1733074247832,-500.0,0.00028493,3]
[343924426,1733074247841,-850.13,0.00028493,3]
[343924427,1733074247851,-621.45,0.00028493,3]
[343924428,1733074247861,-540.60816494,0.00028493,3]
[343924429,1733074247871,-627.68,0.00028493,3]
[343924430,1733074247880,-500.0,0.00028493,3]
[343924431,1733074247891,-500.0,0.00028493,3]
[343924432,1733074247900,-975.75,0.00028493,3]
[343924433,1733074247910,-500.0,0.00028493,3]
[343924434,1733074247919,-500.0,0.00028493,3]
[343924435,1733074247929,-500.0,0.00028493,3]
[343924436,1733074247939,-594.46,0.00028493,3]
[343924437,1733074247949,-500.0,0.00028493,3]
[343924438,1733074247959,-500.0,0.00028493,3]
[343924439,1733074247969,-1526.35,0.00028493,3]
[343924440,1733074247979,-500.0,0.00028493,3]
[343924441,1733074247989,-500.0,0.00028493,3]
[343924442,1733074248000,-500.0,0.00028493,3]
[343924443,1733074248011,-500.0,0.00028493,3]
[343924444,1733074248021,-500.0,0.00028493,3]
[343924445,1733074248032,-586.78,0.00028493,3]
[343924446,1733074248042,-500.0,0.00028493,3]
[343924447,1733074248052,-550.4,0.00028493,3]
[343924448,1733074248067,-500.0,0.00028493,3]
[343924449,1733074248077,-6141.8,0.00028493,3]
[343924450,1733074248087,-500.0,0.00028493,3]
[343924451,1733074248097,-512.77,0.00028493,3]
[343924452,1733074248107,-20652.31,0.00028493,3]
[343924453,1733074248118,-500.0,0.00028493,3]
[343924454,1733074248127,-500.0,0.00028493,3]
[343924455,1733074248137,-500.0,0.00028493,3]
[343924456,1733074248147,-1059.54,0.00028493,3]
[343924457,1733074248157,-500.0,0.00028493,3]
[343924458,1733074248167,-514.96,0.00028493,3]
[343924459,1733074248181,-500.0,0.00028493,3]
[343924460,1733074248191,-3190.15,0.00028493,3]
[343924461,1733074248201,-500.0,0.00028493,3]
[343924462,1733074248212,-500.0,0.00028493,3]
[343924463,1733074248224,-2621.93,0.00028493,3]
[343924464,1733074248234,-481.65735392,0.00028493,3]
[343924465,1733074248245,-500.0,0.00028493,3]
[343924466,1733074248256,-704.53,0.00028493,3]
[343924467,1733074248266,-500.0,0.00028493,3]
[343924468,1733074248276,-642.14,0.00028493,3]
[343924469,1733074248285,-500.0,0.00028493,3]
[343924470,1733074248296,-500.0,0.00028493,3]
[343924471,1733074248307,-500.0,0.00028493,3]
[343924472,1733074248318,-500.0,0.00028493,3]
[343924473,1733074248328,-500.0,0.00028493,3]
[343924474,1733074248339,-500.0,0.00028493,3]
[343924475,1733074248350,-300.0,0.000285,2]
[343924476,1733074248360,-302.4419051,0.0002862,2]
[343924477,1733074248369,-191.625302,0.00028679,2]
[343924478,1733074248379,-480.611272,0.00028679,2]
[343924479,1733074248388,-2500.0,0.00028741,3]
[343924480,1733074248397,-2500.0,0.00028749,3]
[343924481,1733074248407,-2500.0,0.00028758,3]
[343924482,1733074248416,-151.0,0.00028767,7]
[343924483,1733074248426,-151.0,0.00028767,2]
[343924484,1733074248437,-500.0,0.00028767,3]
[343924485,1733074248447,-535.78405554,0.00028767,3]
[343924486,1733074248457,-500.0,0.00028767,4]
[343924487,1733074248467,-151.0,0.00028767,7]
[343924488,1733074248476,-151.0,0.00028767,7]
[343924489,1733074248486,-151.0,0.00028767,7]
[343924490,1733074248498,-500.0,0.00028767,3]
[343924491,1733074248507,-500.0,0.00028767,3]
[343924492,1733074248517,-216.17154877,0.00028767,3]
[343924493,1733074248527,-874.96,0.00028767,3]
[343924494,1733074248536,-500.0,0.00028767,3]
[343924495,1733074248546,-500.0,0.00028767,3]
[343924496,1733074248556,-500.0,0.00028767,3]
[343924497,1733074248566,-500.0,0.00028767,3]
[343924498,1733074248576,-500.0,0.00028767,3]
[343924499,1733074248585,-500.0,0.00028767,3]
[343924500,1733074248595,-500.0,0.00028767,3]
[343924501,1733074248605,-850.13,0.00028767,3]
[343924502,1733074248614,-621.45,0.00028767,3]
[343924503,1733074248624,-2500.0,0.00028767,3]
[343924504,1733074248634,-627.68,0.00028767,3]
[343924505,1733074248644,-500.0,0.00028767,3]
[343924506,1733074248653,-500.0,0.00028767,3]
[343924507,1733074248663,-975.75,0.00028767,3]
[343924508,1733074248673,-500.0,0.00028767,3]
[343924509,1733074248688,-446.54351546,0.00028767,3]
[343924510,1733074248702,-500.0,0.00028767,3]
[343924511,1733074248715,-594.46,0.00028767,3]
[343924512,1733074248730,-500.0,0.00028767,3]
[343924513,1733074248744,-500.0,0.00028767,3]
[343924514,1733074248755,-1526.35,0.00028767,3]
[343924515,1733074248769,-500.0,0.00028767,3]
[343924516,1733074248782,-500.0,0.00028767,3]
[343924517,1733074248795,-571.04519487,0.00028767,3]
[343924518,1733074248807,-500.0,0.00028767,3]
[343924519,1733074248821,-500.0,0.00028767,3]
[343924520,1733074248835,-586.78,0.00028767,3]
[343924521,1733074248849,-500.0,0.00028767,3]
[343924522,1733074248863,-550.4,0.00028767,3]
[343924523,1733074248877,-500.0,0.00028767,3]
[343924524,1733074248891,-6141.8,0.00028767,3]
[343924525,1733074248904,-500.0,0.00028767,3]
[343924526,1733074248916,-512.77,0.00028767,3]
[343924527,1733074248929,-20652.31,0.00028767,3]
[343924528,1733074248941,-500.0,0.00028767,3]
[343924529,1733074248953,-500.0,0.00028767,3]
[343924530,1733074248967,-500.0,0.00028767,3]
[343924531,1733074248980,-1059.54,0.00028767,3]
[343924532,1733074248994,-500.0,0.00028767,3]
[343924533,1733074249007,-514.96,0.00028767,3]
[343924534,1733074249018,-500.0,0.00028767,3]
[343924535,1733074249029,-3190.15,0.00028767,3]
[343924536,1733074249041,-500.0,0.00028767,3]
[343924537,1733074249053,-500.0,0.00028767,3]
[343924538,1733074249065,-2621.93,0.00028767,3]
[343924539,1733074249078,-500.0,0.00028767,3]
[343924540,1733074249091,-704.53,0.00028767,3]
[343924541,1733074249105,-210.96556155,0.00028767,3]
[343924542,1733074249117,-642.14,0.00028767,3]
[343924543,1733074249132,-500.0,0.00028767,3]
[343924544,1733074249145,-500.0,0.00028767,3]
[343924545,1733074249159,-592.5,0.00028767,3]
[343924546,1733074249173,-500.0,0.00028767,3]
[343924547,1733074249189,-500.0,0.00028767,3]
[343924548,1733074249200,-500.0,0.00028767,3]
[343924549,1733074249211,-500.0,0.00028773,5]
[343924550,1733074249222,-302.4419051,0.00028871,2]
[343924551,1733074249233,-862.43753638,0.00029,2]
[343924552,1733074249246,-500.0,0.00029041,3]
[343924553,1733074249260,-151.0,0.00029041,7]
[343924554,1733074249274,-151.0,0.00029041,7]
[343924555,1733074249287,-500.0,0.00029041,3]
[343924556,1733074249297,-500.0,0.00029041,3]
[343924557,1733074249308,-874.96,0.00029041,3]
[343924558,1733074249319,-500.0,0.00029041,3]
[343924559,1733074249330,-500.0,0.00029041,3]
[343924560,1733074249342,-500.0,0.00029041,3]
[343924561,1733074249355,-375.76357891,0.00029041,3]
[343924562,1733074249366,-500.0,0.00029041,3]
[343924563,1733074249376,-500.0,0.00029041,3]
[343924564,1733074249387,-500.0,0.00029041,3]
[343924565,1733074249397,-850.13,0.00029041,3]
[343924566,1733074249408,-621.45,0.00029041,3]
[343924567,1733074249419,-627.68,0.00029041,3]
[343924568,1733074249430,-500.0,0.00029041,3]
[343924569,1733074249440,-500.0,0.00029041,3]